Cogmind - Beta 12 @@@ ROGUE MODE // 2024.01.15 @ 00:41:28 Player: sasha Result: Destroyed by G-47 Trooper with Particle Gun Performance ------------- Evolutions (0) 0 Regions Visited (2) 400 Robots Destroyed (24) 120 Value Destroyed (463) 463 Prototype IDs (0) 0 Alien Tech Used (0) 0 Bonus (0) 0 TOTAL SCORE: 983 Bonus ------- None Cogmind --------- Core Integrity 0/250 Matter 294/300 Energy 125/125 System Corruption 6% Temperature Cool (9) Movement Rolling (110) Ox2 Location -10/Mines Parts ------- > --- POWER (1) -------- Light Ion Engine > --- PROPULSION (2) --- Light Treads Wheel > --- UTILITY (2) ------ Large Storage Unit Targeting Computer > --- WEAPON (2) ------- Light Assault Rifle Light Assault Rifle > --- INVENTORY (15) --- Light Ion Engine Wheel Improved Heat Sink Targeting Computer Targeting Computer Targeting Computer Propulsion Shielding Light Assault Rifle Peak State ------------ > --- POWER ------------ Light Nuclear Core > --- PROPULSION ------- Aluminum Leg > --- UTILITY ---------- Small Storage Unit Improved Terrain Scanner > --- WEAPON ----------- Assault Rifle Light Assault Rifle > --- INVENTORY -------- Light Ion Engine Light Treads Light Treads Aluminum Leg [Rating: 10] Favorites ----------- Power Light Ion Engine Engine Light Ion Engine Power Core Light Nuclear Core Propulsion Light Treads Treads Light Treads Leg Aluminum Leg Wheel Wheel Utility Targeting Computer Device Improved Terrain Scanner Storage Large Storage Unit Processor Targeting Computer Weapon Light Assault Rifle Ballistic Gun Light Assault Rifle Build | -11 -10 -10 ------- Run | Jun Mat Min Slots Evolved . | . . . Power . | . . . Propulsion . | . . . Utility . | . . . Weapon . | . . . Parts Attached 19 | 6 13 . Power 2 | . 2 . Engine 1 | . 1 . Core 1 | . 1 . Reactor . | . . . Propulsion 6 | 2 4 . Treads 3 | 1 2 . Leg 2 | 1 1 . Wheel 1 | . 1 . Hover . | . . . Flight . | . . . Utility 6 | 2 4 . Device 1 | 1 . . Storage 4 | 1 3 . Processor 1 | . 1 . Hackware . | . . . Protection . | . . . Artifact . | . . . Weapon 5 | 2 3 . Energy Gun . | . . . Energy Cannon . | . . . Ballistic Gun 5 | 2 3 . Ballistic Cannon . | . . . Launcher . | . . . Special Weapon . | . . . Impact Weapon . | . . . Slashing Weapon . | . . . Piercing Weapon . | . . . Special Melee Weapon . | . . . Unidentified Prototypes . | . . . Parts Lost 4 | . 4 . Power 1 | . 1 . Propulsion 1 | . 1 . Utility . | . . . Weapon 2 | . 2 . Highest Loss Streak 2 | . 2 . To Critical Strikes . | . . . Average Slot Usage (%) 85 | . 85 . Engine 8 | . 8 . Core 2 | . 2 . Treads 13 | . 13 . Leg 4 | . 4 . Wheel 1 | . 1 . Device 1 | . 1 . Storage 14 | . 14 . Processor 11 | . 11 . Ballistic Gun 27 | . 27 . Naked Turns . | . . . Heaviest Build 26 | 9 26 . Greatest Support 40 | 20 40 . Greatest Overweight (x) 2 | . 2 . Average Overweight (x) . | . . . Largest Inventory Capacity 25 | 8 25 15 Average Capacity 12 | 7 13 15 Most Carried 9 | 6 9 8 Average Carried 6 | 4 6 8 Final Capacity 15 | 8 15 15 Final Carried 8 | 4 8 8 Class Distribution -------------------- 89% | Mutant 10% | Scavenger-Mutant Dominant Class ---------------- Mutant | -10/Materials Mutant | -10/Mines Resources | -11 -10 -10 ----------- Run | Jun Mat Min Matter Collected 638 | 266 372 . Remotely . | . . . Salvage Created 695 | 33 630 32 Parts 61 | 6 53 2 Haulers Intercepted 2 | . 2 . Recyclers Shooed . | . . . Parts Field Recycled . | . . . Retrieved Matter . | . . . Parts Self-Destructed . | . . . Prevented . | . . . Kills | -11 -10 -10 ------- Run | Jun Mat Min Combat Hostiles Destroyed 12 | . 11 1 Guns 12 | . 11 1 Classes Destroyed 8 | 1 7 . Worker 3 | . 3 . Builder 1 | . 1 . Tunneler 3 | 2 1 . Hauler 2 | . 2 . Operator 1 | . 1 . Watcher 2 | . 2 . Swarmer 3 | . 3 . Grunt 9 | . 8 1 Best Kill Streak 7 | 2 7 1 Combat Bots Only 4 | . 4 1 Max Kills in Single Turn 1 | 1 1 1 Gunslinging . | . . . Exploded . | . . . Melee . | . . . Uniques/NPCs Destroyed . | . . . Combat | -11 -10 -10 -------- Run | Jun Mat Min Damage Taken 864 | . 849 15 Core 256 | . 241 15 Absorbed by Shields . | . . . Core Remaining (%) 100 | 100 . . Volleys Fired 81 | 3 77 1 Largest 2 | 2 2 2 Hottest 40 | 40 40 40 Shots Fired 133 | 6 125 2 Gun 133 | 6 125 2 Cannon . | . . . Launcher . | . . . Special . | . . . Kinetic 133 | 6 125 2 Thermal . | . . . Explosive . | . . . Electromagnetic . | . . . Robot Hit Streak 18 | 3 18 2 Robot Miss Streak 3 | 1 3 . Penetration Max . | . . . Secondary Targets 1 | . 1 . Max Gunslinging Chain 1 | . 1 . Shots Hit Robots 93 | 4 87 2 Core Hits 42 | 3 37 2 Critical Kills . | . . . Critical Parts Destroyed 2 | . 2 . Critical Strikes 2 | . 2 . Destroy 2 | . 2 . Melee Attacks . | . . . Impact . | . . . Slashing . | . . . Piercing . | . . . Sneak Attacks . | . . . Combat Hostiles . | . . . Follow-up Attacks . | . . . Damage Inflicted 1159 | 40 1099 20 Guns 935 | 40 875 20 Cannons . | . . . Explosions 222 | . 222 . Melee . | . . . Ramming 2 | . 2 . Kinetic 935 | 40 875 20 Thermal 222 | . 222 . Explosive . | . . . Electromagnetic . | . . . Impact . | . . . Slashing . | . . . Piercing . | . . . Highest Corruption 6 | . 6 6 Average Corruption 5 | . 5 6 Corruption Purged . | . . . Corruption Blocked . | . . . Effects 23 | . 23 . Message Errors 4 | . 4 . Matter Fused 6 | . 6 . Heat Flow Errors 3 | . 3 . Energy Discharges 2 | . 2 . Data Loss (minor) 2 | . 2 . Data Loss (major) 1 | . 1 . Misfires 2 | . 2 . Weapon Failures 3 | . 3 . Overload Shots . | . . . Overflow Damage 218 | . 218 . Projectiles . | . . . Explosions 218 | . 218 . Melee . | . . . Knockbacks . | . . . Impact . | . . . Kinetic . | . . . Secondary . | . . . Self-Inflicted Damage 114 | . 114 . Shots 1 | . 1 . Rammed . | . . . Targets Rammed 1 | . 1 . Kicked 1 | . 1 . Crushed . | . . . Highest Temperature 226 | . 226 . Average Temperature 47 | . 47 . Received Heat Transfer 285 | . 276 9 Siege Activations . | . . . Robots Corrupted . | . . . Combat Hostiles . | . . . Parts Fried . | . . . Impact Corruptions . | . . . Robots Melted . | . . . Combat Hostiles . | . . . Parts Melted . | . . . Heat Transferred 100 | . 100 . Parts Sabotaged . | . . . Parts Stolen . | . . . Parts Stripped . | . . . Power Chain Reactions . | . . . Missiles Intercepted . | . . . Alert | -11 -10 -10 ------- Run | Jun Mat Min Peak Influence 287 | 10 287 66 Initial 46 | . 6 46 Average 99 | 3 106 66 Maximum Alert Level 1 | . 1 . Low Security (%) 98 | 100 98 100 Level 1 1 | . 1 . Level 2 . | . . . Level 3 . | . . . Level 4 . | . . . Level 5 . | . . . High Security . | . . . Max Security . | . . . Squads Dispatched 2 | . 2 . Investigation 1 | . 1 . Extermination . | . . . Reinforcement 1 | . 1 . Assault . | . . . Garrison . | . . . Intercept . | . . . Searches Triggered . | . . . Construction Impeded . | . . . Haulers Reinforced . | . . . Active Scanning Responses . | . . . Cargo Convoy Interrupts . | . . . Stealth | -11 -10 -10 --------- Run | Jun Mat Min Distress Signals 1 | . 1 . Communications Jammed . | . . . Distress Signals . | . . . Times Spotted 19 | . 19 . Peak Tracking Total 5 | . 5 1 Tactical Retreats 1 | . 1 . Traps | -11 -10 -10 ------- Run | Jun Mat Min Traps Triggered 1 | . 1 . Indirectly . | . . . Trap Hack Attempts . | . . . Triggered . | . . . Disarmed . | . . . Reprogrammed . | . . . Reused . | . . . Traps Extracted . | . . . Installed . | . . . Triggered . | . . . Machines | -11 -10 -10 ---------- Run | Jun Mat Min Machines Disabled 2 | . 2 . Max in Single Turn 2 | . 2 . Machines Repaired . | . . . Machines Sabotaged . | . . . Overloaded Fab Kills . | . . . Hacking | -11 -10 -10 --------- Run | Jun Mat Min Machines Accessed 4 | . 4 . Terminals 4 | . 4 . Fabricators . | . . . Repair Stations . | . . . Recycling Units . | . . . Scanalyzers . | . . . Garrison Access . | . . . Total Hacks 13 | . 13 . Successful 3 | . 3 . Failed 9 | . 9 . Catastrophic 1 | . 1 . Database Lockouts 1 | . 1 . Manual 14 | . 14 . Terminals 13 | . 13 . Fabricators . | . . . Repair Stations . | . . . Recycling Units . | . . . Scanalyzers . | . . . Garrison Access . | . . . Terminal Hacks 3 | . 3 . Part Schematic 1 | . 1 . Robot Analysis 2 | . 2 . Fabricator Hacks . | . . . Repair Station Hacks . | . . . Recycling Unit Hacks . | . . . Scanalyzer . | . . . Garrison Access Hacks . | . . . Unauthorized Hacks . | . . . Terminals . | . . . Fabricators . | . . . Repair Stations . | . . . Recycling Units . | . . . Scanalyzers . | . . . Garrison Access . | . . . Data Cores Recovered . | . . . Used . | . . . Hacking Detections 3 | . 3 . Full Trace Events 3 | . 3 . Feedback Events . | . . . Feedback Blocked . | . . . Robot Schematics Acquired . | . . . Robots Built . | . . . Authchips . | . . . Time . | . . . Total Robot Build Rating . | . . . Part Schematics Acquired 1 | . 1 . Parts Built . | . . . Authchips . | . . . Time . | . . . Total Part Build Rating . | . . . Parts Repaired . | . . . Time . | . . . Parts Recycled . | . . . Recycled Matter . | . . . Retrieved Matter . | . . . Retrieved Components . | . . . Parts Scanalyzed . | . . . Part Schematics Acquired . | . . . Parts Damaged . | . . . Bothacking | -11 -10 -10 ------------ Run | Jun Mat Min Used RIF Installer . | . . . Robots Hacked . | . . . Non-combat . | . . . Combat . | . . . Robot Hacks Applied . | . . . Relay Couplers Released . | . . . Fabnet Peak Effective % . | . . . Robots Rewired . | . . . Allies Hacked . | . . . Hacks Repelled . | . . . Allies | -11 -10 -10 -------- Run | Jun Mat Min Total Allies . | . . . Largest Group . | . . . Highest-Rated Group . | . . . Highest-Rated Ally . | . . . Total Orders . | . . . Ally Attacks . | . . . Total Damage . | . . . Kills . | . . . Allies Corrupted . | . . . Allies Melted . | . . . Intel | -11 -10 -10 ------- Run | Jun Mat Min Robot Analysis Total 2 | . 2 . Derelict Logs Recovered . | . . . Drone Launches . | . . . Drone Recoveries . | . . . Exploration | -11 -10 -10 ------------- Run | Jun Mat Min Turns Passed 1108 | 77 1030 1 Spaces Moved 509 | 53 456 . Core 13 | 13 . . Treads 235 | 1 234 . Legs 174 | 39 135 . Wheels 87 | . 87 . Hover . | . . . Flight . | . . . Fastest Speed 50 | 50 110 . Average Speed 166 | 103 173 . Slowest Speed 240 | 160 240 . Overloaded Moves . | . . . Propulsion Burnouts . | . . . Robots Hopped . | . . . Cave-ins Triggered 1 | . 1 . Exploration Rate (%) 29 | 4 78 5 Regions Visited 2 Branch Regions 1 Pre-discovered Areas . | . . . Known Exits Taken . | . . . Unknown Exits Taken 2 | 1 1 . Scrap Searched . | . . . Spaces Dug . | . . . Terrain Destroyed 25 | . 25 . Melee . | . . . Projectile . | . . . AOE 25 | . 25 . Terrain Rammed . | . . . Walls Destroyed . | . . . Machines Disabled . | . . . Actions | -11 -10 -10 --------- Run | Jun Mat Min Total 652 | 69 582 1 Wait 18 | . 18 . Move 507 | 52 455 . Hop . | . . . Pick Up 20 | 7 13 . Fast Attach 3 | 2 1 . Attach 10 | 4 6 . Detach 1 | 1 . . Swap 6 | . 6 . Drop 5 | . 5 . Fire 81 | 3 77 1 Melee . | . . . Ram . | . . . Kick 1 | . 1 . Crush . | . . . Escape Stasis . | . . . Rewire . | . . . Trap . | . . . Miscellaneous . | . . . Route ------- -11/Junkyard -10/Materials (discovered 3 exits: [*Mat x2] / [*Min]) -10/Mines History --------- Turn | Location | Event 11 | -11/Junkyard | Discovered new exit (range 15) 78 | -11/Junkyard | Entered Materials 308 | -10/Materials | Build established: Mutant 412 | -10/Materials | Crushed by falling debris 446 | -10/Materials | Core integrity fell below 50% 487 | -10/Materials | Discovered new exit (range 15) 713 | -10/Materials | Discovered new exit (range 13) 899 | -10/Materials | Core integrity fell below 20% 932 | -10/Materials | Discovered new exit (range 16) 1096 | -10/Materials | Central database locked down 1108 | -10/Materials | Entered Mines 1109 | -10/Mines | Assembled infested the area 1109 | -10/Mines | Destroyed by G-47 Trooper with Particle Gun Last Messages --------------- 01026_ % RC6W UDWCVIW,FFZFLQQGFJ& 01026_ K-01 Serf cleans the Purification Channel. 01044_ System corrupted: Lgt. Assault Rifle jammed. 01045_ System corrupted: Heat flow error (+231). 01054_ K-01 Serf cleans the Terminal. 01054_ Acquired 5 matter. 01071_ K-01 Serf destroyed. 01072_ K-01 Serf collects debris. 01076_ Acquired Wheel. 01076_ K-01 Serf collects debris. 01081_ System corrupted: Heat flow error (+157). 01084_ K-01 Serf collects debris. 01096_ Connecting with Terminal... 01096_ ALERT: Central database lockdown, local access denied. LOCATION=UNKNOWN GOAL=ESCAPE Something is scanning the area. 01108_ G-34 Mercenary destroyed. 01109_ ALERT: Infestation in the mines, dispatching Demolisher response squad. Map ----- +----------------------------------------------------+ | ?????????????????????????????????????????????????? | | ?????????????????????????????????????????????????? | | ?????????????????????????????????????????????????? | | ?????????????????????????????????????????????????? | | ?????????????????????????????????????????????????? | | ?????????????????????????????????????????????????? | | ?????????????????????????????????????????????????? | | ?????????????????????????????????????????????????? | | ?????????????????????????????????????????????????? | | ?????????????????????????????????????????????????? | | ?????????????????????????????????????????????????? | | ?????????????????????????????????????????????????? | | ?????????????????????????????????????????????????? | | ?????????????????????????????????????????????????? | | ?????????????????????????????????????????????????? | | ?????????????????????????????????????????????????? | | ?????????????????????????????????????????????????? | | ?????????????????????????????????????????????????? | | ?????????????????????????????????????????????????? | | ?????????????????????????????????????????????????? | | ?????????????????????????????????????????????????? | | ?????????????????????????????????????????????????? | | ????????????## ?????#######??????????????????????? | | ????????????# ## ##?????????????????????? | | ????????????# ##????????????????????? | | ????????????# * @ #????????????????????? | | ????????????# g% #????????????????????? | | ?????????????# ! ???????????????????? | | ?????????????## $ #?????????????????? | | ??????????????## ###### #?????????????????? | | ???????????????#### #???????#?????????????????? | | ??????????????????## #??????????????????????????? | | ???????????????????###???????????????????????????? | | ?????????????????????????????????????????????????? | | ?????????????????????????????????????????????????? | | ?????????????????????????????????????????????????? | | ?????????????????????????????????????????????????? | | ?????????????????????????????????????????????????? | | ?????????????????????????????????????????????????? | | ?????????????????????????????????????????????????? | | ?????????????????????????????????????????????????? | | ?????????????????????????????????????????????????? | | ?????????????????????????????????????????????????? | | ?????????????????????????????????????????????????? | | ?????????????????????????????????????????????????? | | ?????????????????????????????????????????????????? | | ?????????????????????????????????????????????????? | | ?????????????????????????????????????????????????? | | ?????????????????????????????????????????????????? | | ?????????????????????????????????????????????????? | +----------------------------------------------------+ Best States ------------- Heat Dissipation 25 Energy Generation 14 Energy Capacity 160 Matter Stores 300 Matter Capacity 300 Sight Range 16 Terrain Scan Range 16 Terrain Scan Density 10 Evasion (%) 55 Targeting Accuracy 5 Recoil Reduction 2 Item Schematics ----------------- Hcp. Storage Unit | -10/Materials | Hacked Robot Schematics ------------------ None Fabricated ------------ Nothing Alien Tech Used ----------------- None Achievements -------------- None Challenges ------------ None Game ------ Seed CloakImprovedNanovents Manual? 0 Play Time 00:09:36 Cumulative 78.6 hours Start 2024.01.15 @ 00:28:15 End 2024.01.15 @ 00:41:28 Sessions 1 Manual Loads 0 Difficulty Rogue Special Mode None Game No. 93 Rogue 93 Adventurer 0 Explorer 0 Win Type - Total 0 Types 0/0/0/0/0/0/0/0/0 Lore% 34 Gallery% 43 Achievement% 36 Wizard Run 0 Options --------- ASCII 0 Keyboard 0 Movement Mouse Keybinds 0 Fullscreen 2 Font 24/Smallcaps Map View 76x50 Tactical HUD 1 Map Filters NONE Filters NONE Steam 1 RUN: 8b18533a-cbb3-4e7f-93b7-46633ba81748